bitfinex-derivatives/quotes_BTCF0:USTF0_20250902
["timestamp","ask_amount","ask_price","bid_price","bid_amount"]
[1756796117989,0.43981303,110500.0,110490.0,0.67841339]
[1756796118186,0.67375642,110500.0,110490.0,0.67841339]
[1756796119692,0.43981303,110500.0,110490.0,0.67841339]
[1756796119891,0.59394339,110500.0,110490.0,0.67841339]
[1756796120081,0.362,110500.0,110490.0,0.67841339]
[1756796120387,0.59594339,110500.0,110490.0,0.68293339]
[1756796121290,0.59794339,110500.0,110490.0,0.68293339]
[1756796122491,0.83188678,110500.0,110490.0,1.29047]
[1756796129505,0.59769445,110500.0,110490.0,1.29047]
[1756796129708,0.364,110500.0,110490.0,1.29047]
[1756796129900,0.59769445,110500.0,110490.0,1.29047]
[1756796130102,0.59769445,110500.0,110490.0,0.44899]
[1756796130301,0.59769445,110500.0,110490.0,1.28907]
[1756796132004,0.59769445,110500.0,110490.0,1.28867]
[1756796133692,0.59769445,110500.0,110490.0,1.28863]
[1756796136109,0.364,110500.0,110490.0,1.28863]
[1756796136304,0.59769445,110500.0,110490.0,1.28863]
[1756796136504,0.59769445,110500.0,110490.0,0.44899]
[1756796136705,0.59769445,110500.0,110490.0,1.28799]
[1756796137499,2.6418289,110500.0,110490.0,0.00452]
[1756796137901,2.66225796,110500.0,110490.0,0.00452]
[1756796138100,2.66225796,110500.0,110460.0,0.13202145]
[1756796138300,0.59449445,110470.0,110460.0,0.06715377]
[1756796138499,0.96449445,110470.0,110460.0,0.10223377]
[1756796139707,0.96449445,110470.0,110460.0,0.10523377]
[1756796140413,0.96449445,110470.0,110460.0,0.10423377]
[1756796140603,0.96449445,110470.0,110460.0,0.10323377]
[1756796140803,0.96549445,110470.0,110460.0,0.10323377]
[1756796141409,0.96749445,110470.0,110460.0,0.10223377]
[1756796141600,1.4511889,110470.0,110450.0,0.04957]
[1756796141805,1.6665089,110460.0,110450.0,0.00056]
[1756796142110,2.0065089,110460.0,110450.0,0.00056]
[1756796143313,2.0065089,110460.0,110450.0,0.02056]
[1756796144414,2.0095089,110460.0,110450.0,0.02056]
[1756796145110,2.2615089,110460.0,110450.0,0.02056]
[1756796145622,2.2595089,110460.0,110450.0,0.02056]
[1756796145918,2.2625089,110460.0,110450.0,0.02056]
[1756796149119,2.2625089,110460.0,110450.0,0.02]
[1756796151314,1.4241889,110460.0,110450.0,0.02]
[1756796151517,2.2612689,110460.0,110450.0,0.02]
[1756796152418,1.4241889,110460.0,110450.0,0.02]
[1756796152607,2.2611889,110460.0,110450.0,0.02]
[1756796153517,1.4241889,110460.0,110450.0,0.02]
[1756796153713,1.1741889,110460.0,110450.0,0.10243]
[1756796153915,2.0111489,110460.0,110450.0,0.11654]
[1756796155121,2.0111889,110460.0,110450.0,0.11654]
[1756796155515,2.0111889,110460.0,110450.0,0.06735]
[1756796156318,1.5438,110460.0,110450.0,0.10243]
[1756796156520,2.0111889,110460.0,110450.0,0.11654]
[1756796157720,2.0111889,110460.0,110450.0,0.10243]
[1756796158223,2.0111889,110460.0,110450.0,0.06735]
[1756796158621,2.49488335,110460.0,110410.0,23.03508]
[1756796158826,0.23369445,110420.0,110410.0,23.03508]
[1756796159127,1.16752,110420.0,110410.0,23.03508]
[1756796159324,1.40121445,110420.0,110410.0,23.03508]
[1756796159525,1.41024983,110420.0,110410.0,23.03508]
[1756796160325,1.41024983,110420.0,110410.0,23.03808]
[1756796161023,0.56369445,110420.0,110410.0,23.03808]
[1756796161226,0.57266559,110420.0,110410.0,23.03808]
[1756796162125,0.57266559,110420.0,110410.0,23.03708]
[1756796162424,0.57266559,110420.0,110410.0,23.03808]
[1756796165033,0.56369445,110420.0,110410.0,23.03808]
[1756796167525,0.57287632,110420.0,110410.0,23.03808]
[1756796170625,0.56369445,110420.0,110410.0,23.03808]
[1756796171132,0.57292697,110420.0,110410.0,23.03808]
[1756796172428,0.56369445,110420.0,110410.0,23.03808]
[1756796173129,0.28256868,110460.0,110450.0,0.09676]
[1756796173130,0.01805195,110460.0,110450.0,0.09676]
[1756796173429,1.67196272,110460.0,110450.0,0.09676]
[1756796174233,1.20550846,110460.0,110450.0,0.09676]
[1756796174722,1.20850846,110460.0,110450.0,0.09676]
[1756796175532,1.28222188,110460.0,110450.0,0.09676]
[1756796176326,1.28522188,110460.0,110450.0,0.09676]
[1756796179134,1.26486001,110460.0,110450.0,0.09676]
[1756796184432,1.03116556,110460.0,110450.0,0.09676]
[1756796184639,0.78856537,110460.0,110450.0,0.09676]
[1756796184838,0.35405195,110460.0,110450.0,0.34676]
[1756796185043,0.35405195,110460.0,110450.0,0.94125445]
[1756796185230,0.35405195,110460.0,110450.0,1.00612213]
[1756796185635,0.15405195,110460.0,110450.0,1.00612213]
[1756796185939,0.15305195,110460.0,110450.0,1.00612213]
[1756796186236,0.15305195,110460.0,110450.0,1.35612213]
[1756796186432,0.15005195,110460.0,110450.0,1.35612213]
[1756796186637,0.15105195,110460.0,110450.0,1.38612213]
[1756796186941,0.01905195,110460.0,110450.0,1.02712213]
[1756796187146,0.01805195,110460.0,110450.0,1.33912213]
[1756796187447,0.01805195,110460.0,110450.0,1.02912213]
[1756796187739,0.01805195,110460.0,110450.0,1.86508213]
[1756796188426,0.01805195,110460.0,110450.0,2.22508213]
[1756796189141,0.01805195,110460.0,110450.0,2.2960284]
[1756796189534,0.01805195,110460.0,110450.0,2.52983643]
[1756796189742,0.01805195,110460.0,110450.0,2.16983643]
[1756796190432,0.01805195,110460.0,110450.0,2.10496875]
[1756796190632,0.01805195,110460.0,110450.0,2.51549905]
[1756796190836,0.08921961,110480.0,110450.0,2.22449673]
[1756796191035,0.45921961,110480.0,110470.0,0.67676124]
[1756796191342,0.69297085,110480.0,110470.0,0.67676124]
[1756796192342,0.69297085,110480.0,110470.0,0.69676124]
[1756796193242,0.69397085,110480.0,110470.0,0.69676124]
[1756796193443,0.69497085,110480.0,110470.0,0.69676124]
[1756796196443,0.39005367,110480.0,110470.0,0.69676124]
[1756796196744,0.62380491,110480.0,110470.0,0.69676124]
[1756796197646,0.62380491,110480.0,110470.0,0.46301]
[1756796197846,0.62380491,110480.0,110470.0,0.69676124]
[1756796200834,0.39005367,110480.0,110470.0,0.69676124]
[1756796201239,0.62380491,110480.0,110470.0,0.69676124]
[1756796201845,0.39005367,110480.0,110470.0,0.69676124]
[1756796202246,0.39005367,110480.0,110470.0,0.94676124]
[1756796203637,0.38905367,110480.0,110470.0,0.94676124]
[1756796204047,0.38805367,110480.0,110470.0,0.71401]
[1756796204250,0.38805367,110480.0,110470.0,0.94776124]
[1756796206255,0.38905367,110480.0,110470.0,0.94776124]
[1756796206549,0.39005367,110480.0,110470.0,0.94676124]
[1756796206940,0.38805367,110480.0,110470.0,0.94776124]
[1756796210455,0.38805367,110480.0,110470.0,1.01262892]
[1756796210755,0.38805367,110480.0,110470.0,0.94776124]
[1756796211253,0.38805367,110480.0,110470.0,1.01262892]
[1756796211455,0.38805367,110480.0,110470.0,0.76262892]
[1756796212154,0.38805367,110480.0,110470.0,1.59810892]
[1756796213047,0.38905367,110480.0,110470.0,1.59810892]
[1756796213243,0.39005367,110480.0,110470.0,1.59710892]
[1756796213759,0.38905367,110480.0,110470.0,1.59710892]
[1756796214157,0.38805367,110480.0,110470.0,1.59710892]
[1756796214349,0.38805367,110480.0,110470.0,1.59823143]
[1756796214549,0.38805367,110480.0,110470.0,1.53324124]
[1756796215650,0.38905367,110480.0,110470.0,0.69776124]
[1756796215847,0.39005367,110480.0,110470.0,1.53220124]
[1756796216358,0.39005367,110480.0,110470.0,1.59719976]
[1756796221165,0.39005367,110480.0,110470.0,1.59707976]
[1756796226266,0.39005367,110480.0,110470.0,1.53208124]
[1756796227882,0.39005367,110480.0,110470.0,1.17128124]
[1756796228070,0.39005367,110480.0,110470.0,1.53208124]
[1756796228670,0.64005367,110480.0,110470.0,1.29821]
[1756796228872,1.10755615,110480.0,110470.0,1.29821]
[1756796229062,1.10755615,110480.0,110470.0,1.36324282]
[1756796229569,0.87380491,110480.0,110470.0,1.59699406]
[1756796229970,0.87380491,110480.0,110470.0,1.53196124]
[1756796231269,0.87380491,110480.0,110470.0,1.61304585]
[1756796231473,1.10755615,110480.0,110470.0,0.54409461]
[1756796231770,0.64005367,110480.0,110470.0,0.54409461]
[1756796231970,1.10755615,110480.0,110470.0,0.54409461]
[1756796232676,0.64005367,110480.0,110470.0,0.54409461]
[1756796232979,1.10755615,110480.0,110470.0,0.54409461]
[1756796236078,1.94259615,110480.0,110470.0,0.54409461]
[1756796242276,1.10755615,110480.0,110470.0,0.54409461]
[1756796242481,1.94251615,110480.0,110470.0,0.54409461]
[1756796244174,1.70876491,110480.0,110470.0,0.54409461]
[1756796244982,1.70868491,110480.0,110470.0,0.54409461]
[1756796245280,1.70868491,110480.0,110470.0,0.77784585]
[1756796245783,1.94243615,110480.0,110470.0,0.54409461]
[1756796246783,1.10755615,110480.0,110470.0,0.54409461]
[1756796246983,1.70864491,110480.0,110470.0,0.77784585]
[1756796247884,0.87380491,110480.0,110470.0,0.77784585]
[1756796248086,1.70864491,110480.0,110470.0,0.77784585]
[1756796248687,0.87380491,110480.0,110470.0,0.77784585]
[1756796249487,0.64005367,110480.0,110470.0,0.77783977]
[1756796249786,0.64005367,110480.0,110470.0,0.52807057]
[1756796250695,0.87379883,110480.0,110470.0,0.52807057]
[1756796251695,0.64005367,110480.0,110470.0,0.52807057]
[1756796252295,0.39005367,110480.0,110470.0,1.01181573]
[1756796252498,0.39005367,110480.0,110470.0,0.94675516]
[1756796252694,0.39005367,110480.0,110470.0,1.30755516]
[1756796253094,0.372,110480.0,110470.0,1.30755516]
[1756796253393,0.37,110480.0,110470.0,1.30755516]
[1756796253593,0.37,110480.0,110470.0,1.30855516]
[1756796254200,0.37,110480.0,110470.0,1.39907006]
[1756796254390,0.37,110480.0,110470.0,1.4226476]
[1756796255297,0.37,110480.0,110470.0,1.4236476]
[1756796255504,0.37,110480.0,110470.0,1.4246476]
[1756796256212,0.37,110480.0,110470.0,1.19090244]
[1756796256501,0.60374516,110480.0,110470.0,1.77550244]
[1756796256700,0.60374516,110480.0,110470.0,1.38189138]
[1756796258502,0.60474516,110480.0,110470.0,1.37889138]
[1756796258697,0.60574516,110480.0,110470.0,1.37889138]
[1756796259301,0.60574516,110480.0,110470.0,1.34302138]
[1756796259496,0.60574516,110480.0,110470.0,1.37709138]
[1756796259996,0.60574516,110480.0,110470.0,0.54249138]
[1756796261701,0.60574516,110480.0,110470.0,0.50842138]
[1756796262096,0.372,110480.0,110470.0,0.50842138]
[1756796262297,0.60574516,110480.0,110470.0,0.54249138]
[1756796262702,0.60574516,110480.0,110470.0,0.42714]
[1756796263092,0.60574516,110480.0,110470.0,0.50842138]
[1756796263506,0.60574516,110480.0,110470.0,0.54249138]
[1756796264105,0.60574516,110480.0,110470.0,0.52624783]
[1756796264999,0.372,110480.0,110470.0,0.52624783]
[1756796265206,0.60574516,110480.0,110470.0,0.52624783]
[1756796265907,0.372,110480.0,110470.0,0.52624783]
[1756796266101,0.60574516,110480.0,110470.0,0.52624783]
[1756796266909,0.60574516,110480.0,110470.0,0.46121]
[1756796268208,0.60574516,110480.0,110470.0,0.52625392]
[1756796269209,0.60574516,110480.0,110470.0,0.46121]
[1756796269411,0.372,110480.0,110470.0,0.54249138]
[1756796270310,0.372,110480.0,110470.0,0.77623654]
[1756796271108,0.372,110480.0,110470.0,0.54249138]
[1756796271310,0.372,110480.0,110470.0,0.77623654]
[1756796272305,0.372,110480.0,110470.0,0.54249138]
[1756796277015,0.372,110480.0,110470.0,0.46121]
[1756796277814,0.372,110480.0,110470.0,1.29537]
[1756796278015,0.60574516,110480.0,110470.0,1.29537]
[1756796278214,0.60574516,110480.0,110470.0,1.37665138]
[1756796279012,0.372,110480.0,110470.0,1.37665138]
[1756796279517,0.372,110480.0,110470.0,1.29537]
[1756796280808,0.372,110480.0,110470.0,1.3604295]
[1756796281115,0.60574516,110480.0,110470.0,1.3604295]
[1756796281715,0.60574516,110480.0,110470.0,0.5262695]
[1756796282314,0.372,110480.0,110470.0,0.5262695]
[1756796286625,0.60574516,110480.0,110470.0,0.5262695]
[1756796286826,0.60574516,110480.0,110470.0,0.46121]
[1756796287422,0.372,110480.0,110470.0,0.94495516]
[1756796287727,0.002,110480.0,110470.0,1.38703654]
[1756796288528,0.001,110480.0,110470.0,1.47755144]
[1756796288727,0.01853608,110490.0,110480.0,0.03382]
[1756796289025,0.33853608,110490.0,110480.0,1.5739013]
[1756796289724,2.2506664,110490.0,110480.0,0.06508614]
[1756796290032,2.02083204,110490.0,110480.0,0.02]
[1756796290225,0.95324688,110490.0,110480.0,0.02]
[1756796290420,0.95324688,110490.0,110480.0,0.04267]
[1756796290622,1.76688124,110490.0,110480.0,0.06657]
[1756796290924,0.69933608,110490.0,110480.0,0.10039]
[1756796291128,1.17233608,110490.0,110480.0,0.69493516]
[1756796291328,1.17233608,110490.0,110480.0,0.7600213]
[1756796291823,1.17433608,110490.0,110480.0,0.7600213]
[1756796292024,0.34053608,110490.0,110480.0,0.52627614]
[1756796292228,0.34253608,110490.0,110480.0,0.46119]
[1756796293431,0.34253608,110490.0,110480.0,0.75999831]
[1756796293822,0.34253608,110490.0,110480.0,0.69493516]
[1756796294224,0.34253608,110490.0,110480.0,0.75998676]
[1756796294526,0.34253608,110490.0,110480.0,1.02621654]
[1756796294719,0.324,110490.0,110480.0,0.94493516]
[1756796295127,0.324,110490.0,110480.0,1.02621654]
[1756796295927,0.322,110490.0,110480.0,1.02621654]
[1756796297233,0.32,110490.0,110480.0,0.94493516]
[1756796297635,1.0,110500.0,110490.0,0.03382]
[1756796297821,1.35,110500.0,110490.0,1.74228032]
[1756796298025,1.35,110500.0,110490.0,1.74224032]
[1756796298226,1.35,110500.0,110490.0,1.85224032]
[1756796298625,1.35,110500.0,110490.0,1.87224032]
[1756796298833,1.351,110500.0,110490.0,1.87224032]
[1756796299033,1.352,110500.0,110490.0,1.87224032]
[1756796299430,1.352,110500.0,110490.0,1.9535217]
[1756796300340,1.352,110500.0,110490.0,1.94583417]
[1756796300530,1.352,110500.0,110490.0,2.19583417]
[1756796300738,1.352,110500.0,110490.0,2.13095832]
[1756796301031,1.352,110500.0,110490.0,1.29751832]
[1756796301222,1.352,110500.0,110490.0,2.13095832]
[1756796301428,1.352,110500.0,110490.0,1.36973238]
[1756796301627,1.062,110500.0,110490.0,2.20317238]
[1756796302236,1.062,110500.0,110490.0,0.90224206]
[1756796302436,1.062,110500.0,110490.0,2.20313238]
[1756796302638,1.002,110500.0,110490.0,2.20313238]
[1756796302836,1.002,110500.0,110490.0,1.36973238]
[1756796303138,1.002,110500.0,110490.0,2.20309238]
[1756796303936,1.002,110500.0,110490.0,2.29359088]
[1756796305842,1.002,110500.0,110490.0,2.31368167]
[1756796306032,1.002,110500.0,110490.0,2.42767972]
[1756796306232,1.002,110500.0,110490.0,2.42751972]
[1756796306435,1.002,110500.0,110490.0,1.48022728]
[1756796306638,1.002,110500.0,110490.0,2.31342728]
[1756796308641,1.002,110500.0,110490.0,4.45929244]
[1756796308642,0.27376473,110500.0,110490.0,4.45929244]
[1756796308940,0.01843449,110530.0,110520.0,0.137044]
[1756796309145,1.1145588,110560.0,110540.0,0.03382]
[1756796309334,1.4745588,110560.0,110540.0,0.67493516]
[1756796309643,1.70830396,110560.0,110540.0,0.67493516]
[1756796309840,1.4745588,110560.0,110540.0,0.67493516]
[1756796310040,1.70830396,110560.0,110540.0,0.67493516]
[1756796310742,1.4745588,110560.0,110540.0,0.69493516]
[1756796310935,1.4775588,110560.0,110540.0,0.69493516]
[1756796311134,1.35650396,110560.0,110540.0,0.46119]
[1756796311441,0.23342223,110550.0,110540.0,0.69461223]
[1756796311643,0.55342223,110550.0,110540.0,0.69461223]
[1756796311940,0.32,110550.0,110540.0,0.46119]
[1756796312137,0.55342223,110550.0,110540.0,0.46119]
[1756796312331,0.55342223,110550.0,110540.0,0.69461223]
[1756796312535,0.55542223,110550.0,110540.0,0.69461223]
[1756796313645,0.56142223,110550.0,110540.0,0.69461223]
[1756796314643,0.55942223,110550.0,110540.0,0.69461223]
[1756796315140,0.55942223,110550.0,110540.0,0.80461223]
[1756796315442,0.326,110550.0,110540.0,0.80461223]
[1756796315639,0.324,110550.0,110540.0,1.03803446]
[1756796316438,0.324,110550.0,110540.0,0.80461223]
[1756796316839,0.322,110550.0,110540.0,0.80461223]
[1756796317143,0.55542223,110550.0,110540.0,0.80461223]
[1756796319046,0.322,110550.0,110540.0,0.80461223]
[1756796319246,0.55542223,110550.0,110540.0,0.80461223]
[1756796320348,0.55542223,110550.0,110540.0,0.57119]
[1756796320547,1.03884446,110550.0,110540.0,0.02]
[1756796320844,0.80542223,110550.0,110540.0,0.02]
[1756796321849,1.39964446,110550.0,110540.0,0.02]
[1756796322545,1.63306669,110550.0,110540.0,0.02]
[1756796322943,2.46566669,110550.0,110540.0,0.02]
[1756796323147,2.2526875,110550.0,110540.0,0.02]
[1756796328946,2.0026875,110550.0,110540.0,0.02]
[1756796329248,2.0026875,110550.0,110510.0,0.23342223]
[1756796329249,2.48610973,110550.0,110510.0,0.04831]
[1756796329450,0.59422223,110520.0,110510.0,0.04831]
[1756796329755,1.97020446,110520.0,110500.0,0.45799]
[1756796329951,0.23342223,110510.0,110500.0,0.45799]
[1756796330150,0.36,110510.0,110500.0,0.45799]
[1756796330350,1.42398223,110510.0,110500.0,0.45799]
[1756796331052,1.19056,110510.0,110500.0,0.45799]
[1756796331239,1.42398223,110510.0,110500.0,0.45799]
[1756796331552,1.42598223,110510.0,110500.0,0.47799]
[1756796331752,1.42798223,110510.0,110500.0,0.47799]
[1756796332554,1.55536,110510.0,110500.0,0.11719]
[1756796332748,1.78878223,110510.0,110500.0,0.11719]
[1756796333149,1.79804202,110510.0,110500.0,0.11719]
[1756796336358,1.79804202,110510.0,110500.0,0.04374]
[1756796336547,1.79804202,110510.0,110500.0,0.06831]
[1756796336746,1.79804202,110510.0,110500.0,0.1026]
[1756796336952,0.96548202,110510.0,110500.0,0.1026]
[1756796337146,1.79804202,110510.0,110500.0,0.1173]
[1756796338453,0.96548202,110510.0,110500.0,0.1173]
[1756796338654,1.79804202,110510.0,110500.0,0.1173]
[1756796339650,1.79800202,110510.0,110500.0,0.1173]
[1756796339850,1.56457979,110510.0,110500.0,0.1173]
[1756796340051,1.79800202,110510.0,110500.0,0.1173]
[1756796342358,1.79796202,110510.0,110500.0,0.1173]
[1756796343456,0.362,110510.0,110500.0,0.35072223]
[1756796343653,1.42790223,110510.0,110500.0,0.35072223]
[1756796344052,1.42790223,110510.0,110500.0,0.1173]
[1756796344254,1.19448,110510.0,110500.0,0.1173]
[1756796344454,0.362,110510.0,110500.0,0.1173]
[1756796344658,1.42790223,110510.0,110500.0,0.71152223]
[1756796345658,1.42790223,110510.0,110500.0,0.4781]
[1756796346452,1.42786223,110510.0,110500.0,0.4781]
[1756796346853,1.42786223,110510.0,110500.0,0.71152223]
[1756796347761,1.42786223,110510.0,110500.0,0.4781]
[1756796348660,0.59542223,110510.0,110500.0,0.4781]
[1756796348862,1.42782223,110510.0,110500.0,0.4781]
[1756796349260,1.42782223,110510.0,110500.0,0.54275705]
[1756796349456,0.59542223,110510.0,110500.0,0.54275705]
[1756796349660,1.42782223,110510.0,110500.0,0.77617928]
[1756796350160,0.59542223,110510.0,110500.0,0.77617928]
[1756796350363,1.42778223,110510.0,110500.0,0.77617928]
[1756796350558,1.42778223,110510.0,110500.0,0.54275705]
[1756796350759,1.42778223,110510.0,110500.0,0.77617928]
[1756796352072,1.42778223,110510.0,110500.0,0.54275705]
[1756796352281,1.42778223,110510.0,110500.0,0.44381]
[1756796352670,1.42778223,110510.0,110500.0,0.48108]
[1756796353678,1.42778223,110510.0,110500.0,0.54604876]
[1756796353878,1.42778223,110510.0,110500.0,0.77947099]
[1756796354172,1.19436,110510.0,110500.0,0.77947099]
[1756796354578,1.42778223,110510.0,110500.0,0.77947099]
[1756796356076,1.42778223,110510.0,110500.0,0.54604876]
[1756796356273,1.42778223,110510.0,110500.0,0.48108]
[1756796358886,1.42778223,110510.0,110500.0,0.02]
[1756796358887,1.91120446,110510.0,110500.0,0.02]
[1756796359088,2.27200446,110510.0,110500.0,0.085058]
[1756796359390,2.27200446,110510.0,110500.0,0.02]
[1756796359580,2.27200446,110510.0,110500.0,0.085058]
[1756796359780,2.27200446,110510.0,110500.0,0.02]
[1756796359981,2.50542669,110510.0,110500.0,0.02]
[1756796360285,2.29276628,110510.0,110500.0,0.02]
[1756796362086,2.52618851,110510.0,110480.0,0.113628]
[1756796362383,1.07957023,110490.0,110470.0,0.1459117]
[1756796362683,1.65984446,110480.0,110470.0,0.065058]
[1756796362887,2.21326669,110480.0,110460.0,0.08529901]
[1756796363086,0.82764446,110470.0,110460.0,0.08529901]
[1756796363385,1.20764446,110470.0,110460.0,0.02024101]
[1756796363587,2.03984446,110470.0,110460.0,0.02024101]
[1756796363785,2.03984446,110470.0,110460.0,0.04452101]
[1756796363986,2.03984446,110470.0,110460.0,0.04852101]
[1756796364486,2.03984446,110470.0,110460.0,0.02828]
[1756796364686,2.03984446,110470.0,110460.0,0.02428]
[1756796364888,2.05802107,110470.0,110460.0,0.04957]
[1756796365286,2.05810107,110470.0,110460.0,0.04957]
[1756796366782,2.05810107,110470.0,110460.0,0.08684]
[1756796367490,2.13081579,110470.0,110460.0,0.08684]
[1756796368088,2.14008046,110470.0,110460.0,0.08684]
[1756796371690,1.9070683,110470.0,110460.0,0.08684]
[1756796376997,1.0747883,110470.0,110460.0,0.08684]
[1756796377196,1.9070283,110470.0,110460.0,0.08684]
[1756796377589,1.9070283,110470.0,110460.0,0.001]
[1756796377798,2.1408606,110470.0,110460.0,0.001]
[1756796377989,2.3908606,110470.0,110460.0,0.001]
[1756796378189,2.3908606,110470.0,110460.0,0.00552]
[1756796378386,2.3943006,110470.0,110460.0,0.00552]
[1756796381596,2.1443006,110470.0,110460.0,0.00552]
[1756796381795,0.2338323,110450.0,110440.0,0.46272607]
[1756796381990,0.5938323,110450.0,110440.0,0.46272607]
[1756796382191,1.4194723,110450.0,110440.0,0.46272607]
[1756796382899,1.4194723,110450.0,110440.0,0.46772607]
[1756796383497,0.5838323,110450.0,110440.0,0.46772607]
[1756796383706,1.4194723,110450.0,110440.0,0.46772607]
[1756796384002,1.4194723,110450.0,110440.0,0.46972607]
[1756796385495,1.4194723,110450.0,110440.0,0.43430607]
[1756796386897,1.4194723,110450.0,110440.0,0.46972607]
[1756796388903,1.4188723,110450.0,110440.0,0.46972607]
[1756796389405,1.4188723,110450.0,110440.0,0.41070607]
[1756796389902,1.4188723,110450.0,110440.0,0.43434607]
[1756796390302,1.4188723,110450.0,110440.0,0.53482407]
[1756796390696,1.4188723,110450.0,110440.0,0.514998]
[1756796392707,0.5838323,110450.0,110440.0,0.514998]
[1756796392915,1.4183523,110450.0,110440.0,0.514998]
[1756796393306,0.5838323,110450.0,110440.0,0.514998]
[1756796393606,1.4181123,110450.0,110440.0,0.514998]
[1756796394909,0.5838323,110450.0,110440.0,0.514998]
[1756796395307,1.4177923,110450.0,110440.0,0.514998]
[1756796400198,0.35,110450.0,110440.0,0.514998]
[1756796400416,1.4172323,110450.0,110440.0,0.514998]
[1756796401412,1.4172323,110450.0,110440.0,0.479578]
[1756796401616,1.4172323,110450.0,110440.0,0.514998]
[1756796401909,2.2618646,110450.0,110440.0,0.072098]
[1756796402106,2.2618646,110450.0,110440.0,0.00704]
[1756796403310,2.2618646,110450.0,110440.0,0.00459787]
[1756796403504,2.28375072,110450.0,110440.0,4e-05]
[1756796403709,2.28375072,110450.0,110420.0,0.111738]
[1756796403909,0.4676646,110430.0,110420.0,0.111738]
[1756796404109,1.6623046,110430.0,110420.0,0.065058]
[1756796404315,1.6623046,110430.0,110420.0,0.111738]
[1756796404515,1.6623046,110430.0,110420.0,0.147158]
[1756796405008,0.8276646,110430.0,110420.0,0.147158]
[1756796405207,1.4284323,110430.0,110420.0,0.147158]
[1756796405514,1.4283123,110430.0,110420.0,0.147158]
[1756796405705,0.5938323,110430.0,110420.0,0.150158]
[1756796405906,1.19476,110430.0,110420.0,0.760958]
[1756796406107,1.19472,110430.0,110420.0,0.6959]
[1756796406307,0.36,110430.0,110420.0,0.6959]
[1756796406508,1.0689523,110440.0,110430.0,0.03693]
[1756796406704,0.5838323,110440.0,110430.0,0.51136493]
[1756796406904,1.4189523,110440.0,110430.0,0.51136493]
[1756796407109,0.5838323,110440.0,110430.0,0.76136493]
[1756796407413,1.18504,110440.0,110430.0,0.9300423]
[1756796407715,0.35,110440.0,110430.0,0.7770637]
[1756796408621,0.5838323,110440.0,110430.0,0.7790637]
[1756796409210,0.5838323,110440.0,110430.0,0.8890637]
[1756796410918,0.35,110440.0,110430.0,0.8890637]
[1756796411115,0.5838323,110440.0,110430.0,0.8890637]
[1756796412318,0.5838323,110440.0,110430.0,0.80821]
[1756796412927,0.35,110440.0,110430.0,0.80821]
[1756796413230,0.5838323,110440.0,110430.0,0.80821]
[1756796413927,0.35,110440.0,110430.0,0.80821]
[1756796414121,0.5838323,110440.0,110430.0,0.80821]
[1756796415026,0.5838323,110440.0,110430.0,0.88968408]
[1756796415220,0.2338323,110460.0,110430.0,0.94330158]
[1756796415442,1.20656,110460.0,110450.0,0.16547829]
[1756796415632,0.37,110460.0,110450.0,0.16547829]
[1756796415828,1.20652,110460.0,110450.0,0.16547829]
[1756796416040,0.37,110460.0,110450.0,0.16547829]
[1756796416534,1.6741446,110460.0,110450.0,0.16547829]
[1756796416737,1.6751446,110460.0,110450.0,0.06517829]
[1756796417137,1.6771446,110460.0,110450.0,0.06517829]
[1756796417334,1.6771446,110460.0,110450.0,0.08895829]
[1756796417529,1.6771446,110460.0,110450.0,0.11365829]
[1756796417734,1.6771446,110460.0,110450.0,0.15058829]
[1756796417936,1.6771446,110460.0,110450.0,0.11365829]
[1756796418939,1.6771446,110460.0,110450.0,0.15058829]
[1756796420335,1.6771446,110460.0,110450.0,0.11365829]
[1756796420547,1.6771446,110460.0,110450.0,0.15058829]
[1756796420740,1.6771446,110460.0,110450.0,0.11365829]
[1756796422042,2.0379446,110460.0,110450.0,0.11365829]
[1756796424642,2.0379446,110460.0,110450.0,0.06517829]
[1756796426438,2.0379446,110460.0,110450.0,0.08895829]
[1756796426638,2.0379446,110460.0,110450.0,0.06517829]
[1756796427639,2.0379446,110460.0,110450.0,0.08895829]
[1756796427841,2.0379446,110460.0,110450.0,0.11365829]
[1756796431644,2.0379446,110460.0,110450.0,0.08895829]
[1756796433452,1.43554836,110460.0,110450.0,0.08895829]
[1756796433753,2.27134836,110460.0,110450.0,0.06517829]
[1756796434252,2.52134836,110460.0,110430.0,0.08147408]
[1756796434452,0.3608,110440.0,110430.0,0.08147408]
[1756796434746,2.20838836,110440.0,110430.0,0.10525408]
[1756796434946,2.20838836,110440.0,110430.0,0.12995408]
[1756796435255,0.31,110440.0,110430.0,0.52589408]
[1756796435459,1.61351224,110440.0,110430.0,0.52789408]
[1756796437053,1.61351224,110440.0,110430.0,0.52793408]
[1756796437349,1.61339224,110440.0,110430.0,0.44646]
[1756796437554,1.06947612,110440.0,110430.0,0.93037612]
[1756796437853,0.23391612,110440.0,110430.0,1.0118502]
[1756796439160,0.83544,110450.0,110440.0,0.08412]
[1756796439453,1.43935612,110450.0,110440.0,0.44492]
[1756796440054,0.60391612,110450.0,110440.0,0.44492]
[1756796440253,1.43931612,110450.0,110440.0,0.44492]
[1756796440456,1.44031612,110450.0,110440.0,0.55492]
[1756796440652,1.67423224,110450.0,110440.0,0.44492]
[1756796440856,1.67423224,110450.0,110440.0,0.04898]
[1756796441057,1.67423224,110450.0,110440.0,0.15898]
[1756796441654,1.67423224,110450.0,110440.0,0.13441]
[1756796441958,2.51894836,110450.0,110430.0,0.44231408]
[1756796442158,0.70174836,110440.0,110430.0,0.44231408]
[1756796442359,1.03038834,110440.0,110430.0,0.36084]
[1756796444157,1.28038834,110440.0,110430.0,0.36084]
[1756796444356,1.64118834,110440.0,110430.0,0.08151408]
[1756796444661,1.64118834,110440.0,110430.0,0.06718687]
[1756796445450,1.40727222,110440.0,110430.0,0.15130687]
[1756796445655,1.63127222,110440.0,110430.0,0.15130687]
[1756796446561,0.79647222,110440.0,110430.0,0.15130687]
[1756796446767,1.63139222,110440.0,110430.0,0.15130687]
[1756796448065,0.79647222,110440.0,110430.0,0.15130687]
[1756796448264,1.63143222,110440.0,110430.0,0.15130687]
[1756796449965,0.79647222,110440.0,110430.0,0.15130687]
[1756796450167,1.63143222,110440.0,110430.0,0.15130687]
[1756796451264,1.63115222,110440.0,110430.0,0.15130687]
[1756796451566,0.79647222,110440.0,110430.0,0.15130687]
[1756796451764,1.63111222,110440.0,110430.0,0.15130687]
[1756796452164,0.79647222,110440.0,110430.0,0.15130687]
[1756796452366,1.63111222,110440.0,110430.0,0.15130687]
[1756796453268,0.79647222,110440.0,110430.0,0.15130687]
[1756796453469,1.63083222,110440.0,110430.0,0.15130687]